[Event "Titled Tuesday Blitz March 08 Late 2022"]
[White "Suarez Uriel, Adrian"]
[Black "Makarian, Rudik"]
[WhiteFideId "22230874"]
[BlackFideId "44105681"]
[WhiteElo "2316"]
[BlackElo "2388"]
[Result "0-1"]
[Round "05"]
[TimeControl "180+1"]
[Date "2022.03.08"]
[WhiteClock "0:00:03"]
[BlackClock "0:00:17"]

1. e4 {[%clk 0:02:50]}  d6 {[%clk 0:02:55]} 2. d4 {[%clk 0:02:50]}  Nf6 {[%clk 0:02:56]} 3. Nc3 {[%clk 0:02:49]}  e5 {[%clk 0:02:56]} 4. Nf3 {[%clk 0:02:49]}  Nbd7 {[%clk 0:02:56]} 5. Bc4 {[%clk 0:02:48]}  Be7 {[%clk 0:02:56]} 6. a4 {[%clk 0:02:49]}  c6 {[%clk 0:02:56]} 7. O-O {[%clk 0:02:48]}  O-O {[%clk 0:02:57]} 8. Re1 {[%clk 0:02:46]}  exd4 {[%clk 0:02:56]} 9. Qxd4 {[%clk 0:02:44]}  Ne5 {[%clk 0:02:56]} 10. Nxe5 {[%clk 0:02:43]}  dxe5 {[%clk 0:02:57]} 11. Qxe5 {[%clk 0:02:43]}  Ng4 {[%clk 0:01:42]} 12. Qf4 {[%clk 0:02:30]}  Bc5 {[%clk 0:01:35]} 13. Be3 {[%clk 0:02:30]}  Nxe3 {[%clk 0:01:35]} 14. fxe3 {[%clk 0:02:31]}  Qe7 {[%clk 0:01:27]} 15. e5 {[%clk 0:02:20]}  Be6 {[%clk 0:01:22]} 16. Bd3 {[%clk 0:02:09]}  Bb4 {[%clk 0:01:11]} 17. Qe4 {[%clk 0:01:55]}  g6 {[%clk 0:01:10]} 18. Qf4 {[%clk 0:01:52]}  Bxc3 {[%clk 0:01:10]} 19. bxc3 {[%clk 0:01:52]}  Rfe8 {[%clk 0:01:09]} 20. a5 {[%clk 0:01:49]}  Rad8 {[%clk 0:01:03]} 21. Rab1 {[%clk 0:01:48]}  Bd5 {[%clk 0:00:55]} 22. c4 {[%clk 0:01:45]}  Be6 {[%clk 0:00:55]} 23. h4 {[%clk 0:01:31]}  Bc8 {[%clk 0:00:55]} 24. h5 {[%clk 0:01:26]}  Qxe5 {[%clk 0:00:55]} 25. hxg6 {[%clk 0:01:26]}  hxg6 {[%clk 0:00:55]} 26. Rf1 {[%clk 0:00:54]}  Qxe3+ {[%clk 0:00:52]} 27. Qxe3 {[%clk 0:00:54]}  Rxe3 {[%clk 0:00:53]} 28. c5 {[%clk 0:00:55]}  a6 {[%clk 0:00:44]} 29. Bc4 {[%clk 0:00:54]}  Rd7 {[%clk 0:00:41]} 30. Rbd1 {[%clk 0:00:51]}  Ree7 {[%clk 0:00:36]} 31. Rd6 {[%clk 0:00:41]}  Kg7 {[%clk 0:00:32]} 32. Kh2 {[%clk 0:00:31]}  f5 {[%clk 0:00:24]} 33. g3 {[%clk 0:00:25]}  Re5 {[%clk 0:00:19]} 34. Rfd1 {[%clk 0:00:24]}  Rde7 {[%clk 0:00:18]} 35. Rd8 {[%clk 0:00:21]}  Be6 {[%clk 0:00:17]} 36. Bxe6 {[%clk 0:00:14]}  R5xe6 {[%clk 0:00:18]} 37. R1d7 {[%clk 0:00:13]}  Kf6 {[%clk 0:00:18]} 38. Kg2 {[%clk 0:00:13]}  Ke5 {[%clk 0:00:19]} 39. Kf3 {[%clk 0:00:13]}  g5 {[%clk 0:00:19]} 40. Rxe7 {[%clk 0:00:08]}  Rxe7 {[%clk 0:00:20]} 41. Rg8 {[%clk 0:00:09]}  g4+ {[%clk 0:00:19]} 42. Ke3 {[%clk 0:00:09]}  Kd5+ {[%clk 0:00:18]} 43. Kd3 {[%clk 0:00:09]}  Kxc5 {[%clk 0:00:18]} 44. Rf8 {[%clk 0:00:10]}  Re5 {[%clk 0:00:18]} 45. Rf7 {[%clk 0:00:09]}  Kb5 {[%clk 0:00:16]} 46. Rxb7+ {[%clk 0:00:09]}  Kxa5 {[%clk 0:00:17]} 47. Kd4 {[%clk 0:00:07]}  Rd5+ {[%clk 0:00:17]} 48. Kc4 {[%clk 0:00:06]}  Rb5 {[%clk 0:00:16]} 49. Rc7 {[%clk 0:00:06]}  Kb6 {[%clk 0:00:16]} 50. Rf7 {[%clk 0:00:06]}  a5 {[%clk 0:00:17]} 51. Rf8 {[%clk 0:00:06]}  a4 {[%clk 0:00:17]} 52. Rb8+ {[%clk 0:00:06]}  Ka7 {[%clk 0:00:16]} 53. Rc8 {[%clk 0:00:05]}  a3 {[%clk 0:00:16]} 54. Rc7+ {[%clk 0:00:02]}  Kb6 {[%clk 0:00:15]} 55. Rc8 {[%clk 0:00:02]}  a2 {[%clk 0:00:16]} 56. Ra8 {[%clk 0:00:03]}  Ra5 {[%clk 0:00:16]} 57. Rb8+ {[%clk 0:00:03]}  Kc7 {[%clk 0:00:17]} 0-1


[Site "https://www.chess.com"]

[Event "Titled Tuesday Blitz March 08 Late 2022"]
[White "Suder, Jakub"]
[Black "Bryakin, Mikhail"]
[WhiteFideId "1195310"]
[BlackFideId "4165314"]
[WhiteElo "2058"]
[BlackElo "2417"]
[Result "1/2-1/2"]
[Round "05"]
[TimeControl "180+1"]
[Date "2022.03.08"]
[WhiteClock "0:00:13"]
[BlackClock "0:00:40"]

1. d4 {[%clk 0:03:00]}  Nf6 {[%clk 0:02:58]} 2. c4 {[%clk 0:03:00]}  g6 {[%clk 0:02:59]} 3. Nc3 {[%clk 0:03:00]}  Bg7 {[%clk 0:02:59]} 4. e4 {[%clk 0:02:59]}  d6 {[%clk 0:03:00]} 5. Be2 {[%clk 0:02:59]}  O-O {[%clk 0:03:00]} 6. Nf3 {[%clk 0:02:58]}  e5 {[%clk 0:02:52]} 7. O-O {[%clk 0:02:57]}  Nc6 {[%clk 0:02:52]} 8. d5 {[%clk 0:02:57]}  Ne7 {[%clk 0:02:53]} 9. Ne1 {[%clk 0:02:58]}  Nd7 {[%clk 0:02:52]} 10. Be3 {[%clk 0:02:58]}  a5 {[%clk 0:02:50]} 11. Nd3 {[%clk 0:02:54]}  b6 {[%clk 0:02:49]} 12. a3 {[%clk 0:02:53]}  Nc5 {[%clk 0:02:49]} 13. b4 {[%clk 0:02:48]}  Nxd3 {[%clk 0:02:49]} 14. Bxd3 {[%clk 0:02:47]}  f5 {[%clk 0:02:49]} 15. f3 {[%clk 0:02:44]}  f4 {[%clk 0:02:33]} 16. Bf2 {[%clk 0:02:43]}  g5 {[%clk 0:02:33]} 17. c5 {[%clk 0:02:44]}  h5 {[%clk 0:02:30]} 18. Be2 {[%clk 0:02:42]}  Bf6 {[%clk 0:02:28]} 19. Rc1 {[%clk 0:02:39]}  Rf7 {[%clk 0:02:28]} 20. cxb6 {[%clk 0:02:34]}  cxb6 {[%clk 0:02:28]} 21. Nb5 {[%clk 0:02:32]}  Rb8 {[%clk 0:02:08]} 22. Nc7 {[%clk 0:02:27]}  axb4 {[%clk 0:02:03]} 23. axb4 {[%clk 0:02:26]}  Kh7 {[%clk 0:02:00]} 24. Ne6 {[%clk 0:02:12]}  Qg8 {[%clk 0:02:00]} 25. Kh1 {[%clk 0:01:55]}  Ng6 {[%clk 0:01:53]} 26. Rc6 {[%clk 0:01:49]}  Be7 {[%clk 0:01:48]} 27. Rxb6 {[%clk 0:01:45]}  Ra8 {[%clk 0:01:45]} 28. Rc6 {[%clk 0:01:31]}  Nh4 {[%clk 0:01:44]} 29. Rg1 {[%clk 0:01:23]}  Ra2 {[%clk 0:01:39]} 30. Rc2 {[%clk 0:01:23]}  Ra3 {[%clk 0:01:38]} 31. Qc1 {[%clk 0:01:19]}  Ra8 {[%clk 0:01:38]} 32. Qd1 {[%clk 0:01:04]}  Ra3 {[%clk 0:01:31]} 33. Qc1 {[%clk 0:01:03]}  Ra8 {[%clk 0:01:30]} 34. b5 {[%clk 0:01:01]}  Bxe6 {[%clk 0:01:27]} 35. dxe6 {[%clk 0:01:01]}  Rg7 {[%clk 0:01:28]} 36. g3 {[%clk 0:00:59]}  fxg3 {[%clk 0:01:24]} 37. hxg3 {[%clk 0:00:59]}  Ng6 {[%clk 0:01:25]} 38. b6 {[%clk 0:00:55]}  Qxe6 {[%clk 0:01:25]} 39. Rg2 {[%clk 0:00:52]}  h4 {[%clk 0:01:24]} 40. Rh2 {[%clk 0:00:47]}  Bf6 {[%clk 0:01:22]} 41. Bc4 {[%clk 0:00:39]}  Qd7 {[%clk 0:01:09]} 42. Bd5 {[%clk 0:00:39]}  Rb8 {[%clk 0:01:09]} 43. Rc7 {[%clk 0:00:36]}  Qb5 {[%clk 0:01:10]} 44. Rxg7+ {[%clk 0:00:34]}  Bxg7 {[%clk 0:01:10]} 45. gxh4 {[%clk 0:00:32]}  g4 {[%clk 0:01:08]} 46. Qg5 {[%clk 0:00:26]}  Qf1+ {[%clk 0:01:07]} 47. Bg1 {[%clk 0:00:24]}  Qxf3+ {[%clk 0:01:04]} 48. Rg2 {[%clk 0:00:25]}  Qh3+ {[%clk 0:01:04]} 49. Bh2 {[%clk 0:00:13]}  Rxb6 {[%clk 0:01:03]} 50. Ba2 {[%clk 0:00:12]}  Nf4 {[%clk 0:00:55]} 51. Qf5+ {[%clk 0:00:12]}  Kh6 {[%clk 0:00:49]} 52. Qg5+ {[%clk 0:00:12]}  Kh7 {[%clk 0:00:46]} 53. Qf5+ {[%clk 0:00:13]}  Kh6 {[%clk 0:00:39]} 54. Qg5+ {[%clk 0:00:13]}  Kh7 {[%clk 0:00:40]} 1/2-1/2


[Site "https://www.chess.com"]

[Event "Titled Tuesday Blitz March 08 Late 2022"]
[White "Svane, Rasmus"]
[Black "Keymer, Vincent"]
[WhiteFideId "4657101"]
[BlackFideId "12940690"]
[WhiteElo "2645"]
[BlackElo "2557"]
[Result "1-0"]
[Round "05"]
[TimeControl "180+1"]
[Date "2022.03.08"]
[WhiteClock "0:00:22"]
[BlackClock "0:00:02"]

1. Nf3 {[%clk 0:03:00]}  d5 {[%clk 0:02:59]} 2. d4 {[%clk 0:03:01]}  Nf6 {[%clk 0:02:59]} 3. Bf4 {[%clk 0:03:01]}  e6 {[%clk 0:02:59]} 4. e3 {[%clk 0:03:01]}  Bd6 {[%clk 0:03:00]} 5. Nbd2 {[%clk 0:03:00]}  O-O {[%clk 0:02:55]} 6. c3 {[%clk 0:03:00]}  c5 {[%clk 0:02:53]} 7. Bd3 {[%clk 0:02:55]}  Bxf4 {[%clk 0:02:49]} 8. exf4 {[%clk 0:02:56]}  b6 {[%clk 0:02:48]} 9. O-O {[%clk 0:02:50]}  Ba6 {[%clk 0:02:43]} 10. Qe2 {[%clk 0:02:40]}  Bxd3 {[%clk 0:02:43]} 11. Qxd3 {[%clk 0:02:41]}  Nc6 {[%clk 0:02:41]} 12. Rfe1 {[%clk 0:02:41]}  Qd6 {[%clk 0:02:36]} 13. g3 {[%clk 0:02:28]}  Rac8 {[%clk 0:02:31]} 14. Re2 {[%clk 0:02:27]}  cxd4 {[%clk 0:02:26]} 15. Nxd4 {[%clk 0:02:27]}  Nxd4 {[%clk 0:02:26]} 16. Qxd4 {[%clk 0:02:28]}  Qc5 {[%clk 0:02:21]} 17. Nb3 {[%clk 0:02:26]}  Qxd4 {[%clk 0:02:16]} 18. Nxd4 {[%clk 0:02:27]}  g6 {[%clk 0:02:16]} 19. f3 {[%clk 0:02:18]}  a6 {[%clk 0:02:12]} 20. g4 {[%clk 0:02:14]}  Nd7 {[%clk 0:02:09]} 21. Kf2 {[%clk 0:02:00]}  b5 {[%clk 0:02:03]} 22. a3 {[%clk 0:01:58]}  Rfe8 {[%clk 0:01:56]} 23. Rae1 {[%clk 0:01:55]}  Kf8 {[%clk 0:01:56]} 24. h4 {[%clk 0:01:55]}  Nc5 {[%clk 0:01:47]} 25. Kg3 {[%clk 0:01:54]}  Nd7 {[%clk 0:01:26]} 26. Rh1 {[%clk 0:01:41]}  h5 {[%clk 0:01:09]} 27. Rhe1 {[%clk 0:01:35]}  Kg8 {[%clk 0:00:44]} 28. Nc2 {[%clk 0:01:32]}  Kf8 {[%clk 0:00:40]} 29. gxh5 {[%clk 0:01:23]}  gxh5 {[%clk 0:00:40]} 30. f5 {[%clk 0:01:24]}  Nc5 {[%clk 0:00:32]} 31. Nd4 {[%clk 0:00:55]}  Nd3 {[%clk 0:00:13]} 32. Rd1 {[%clk 0:00:52]}  Nc5 {[%clk 0:00:14]} 33. fxe6 {[%clk 0:00:49]}  Nxe6 {[%clk 0:00:15]} 34. Nc2 {[%clk 0:00:39]}  Red8 {[%clk 0:00:13]} 35. Red2 {[%clk 0:00:39]}  Nc5 {[%clk 0:00:11]} 36. Ne3 {[%clk 0:00:36]}  d4 {[%clk 0:00:04]} 37. Rxd4 {[%clk 0:00:35]}  Rxd4 {[%clk 0:00:04]} 38. Rxd4 {[%clk 0:00:36]}  Na4 {[%clk 0:00:05]} 39. Rd2 {[%clk 0:00:32]}  Rc5 {[%clk 0:00:05]} 40. Kf4 {[%clk 0:00:30]}  Ke7 {[%clk 0:00:05]} 41. Nf5+ {[%clk 0:00:30]}  Ke8 {[%clk 0:00:02]} 42. Kg5 {[%clk 0:00:22]} 1-0


[Site "https://www.chess.com"]

[Event "Titled Tuesday Blitz March 08 Late 2022"]
[White "Szpar, Milosz"]
[Black "Morris-Suzuki, Sophie"]
[WhiteFideId "1184989"]
[BlackFideId "30922615"]
[WhiteElo "2447"]
[BlackElo "2499"]
[Result "1-0"]
[Round "05"]
[TimeControl "180+1"]
[Date "2022.03.09"]
[WhiteClock "0:02:16"]
[BlackClock "0:00:01"]

1. e4 {[%clk 0:03:00]}  c5 {[%clk 0:03:00]} 2. d4 {[%clk 0:03:00]}  cxd4 {[%clk 0:02:59]} 3. c3 {[%clk 0:03:00]}  d3 {[%clk 0:03:00]} 4. Nf3 {[%clk 0:02:59]}  b6 {[%clk 0:03:00]} 5. c4 {[%clk 0:02:59]}  Bb7 {[%clk 0:03:00]} 6. Nc3 {[%clk 0:02:59]}  a6 {[%clk 0:02:59]} 7. Bxd3 {[%clk 0:02:59]}  e6 {[%clk 0:02:59]} 8. O-O {[%clk 0:02:57]}  d6 {[%clk 0:02:59]} 9. Qe2 {[%clk 0:02:54]}  Nd7 {[%clk 0:02:59]} 10. Rd1 {[%clk 0:02:52]}  Qc7 {[%clk 0:02:59]} 11. Be3 {[%clk 0:02:52]}  Ngf6 {[%clk 0:02:59]} 12. Rac1 {[%clk 0:02:52]}  Be7 {[%clk 0:02:59]} 13. h3 {[%clk 0:02:52]}  O-O {[%clk 0:02:59]} 14. Nd4 {[%clk 0:02:52]}  Rac8 {[%clk 0:02:59]} 15. f3 {[%clk 0:02:51]}  Qb8 {[%clk 0:02:59]} 16. b3 {[%clk 0:02:51]}  Rfe8 {[%clk 0:02:58]} 17. Qf2 {[%clk 0:02:46]}  Bd8 {[%clk 0:02:58]} 18. Bf1 {[%clk 0:02:46]}  Bc7 {[%clk 0:02:58]} 19. Kh1 {[%clk 0:02:45]}  Re7 {[%clk 0:02:00]} 20. b4 {[%clk 0:02:42]}  Rce8 {[%clk 0:01:59]} 21. Nb3 {[%clk 0:02:42]}  d5 {[%clk 0:01:46]} 22. c5 {[%clk 0:02:42]}  Bg3 {[%clk 0:01:07]} 23. Qg1 {[%clk 0:02:38]}  dxe4 {[%clk 0:00:40]} 24. fxe4 {[%clk 0:02:38]}  Nxe4 {[%clk 0:00:35]} 25. Nxe4 {[%clk 0:02:38]}  Bxe4 {[%clk 0:00:36]} 26. Bxa6 {[%clk 0:02:38]}  Ne5 {[%clk 0:00:10]} 27. Bf1 {[%clk 0:02:31]}  bxc5 {[%clk 0:00:06]} 28. Nxc5 {[%clk 0:02:31]}  Bc6 {[%clk 0:00:06]} 29. b5 {[%clk 0:02:29]}  Ba8 {[%clk 0:00:04]} 30. a4 {[%clk 0:02:26]}  Ng6 {[%clk 0:00:03]} 31. Nd7 {[%clk 0:02:21]}  Qb7 {[%clk 0:00:01]} 32. Nb6 {[%clk 0:02:20]}  Qe4 {[%clk 0:00:01]} 33. Nxa8 {[%clk 0:02:19]}  Rxa8 {[%clk 0:00:02]} 34. Be2 {[%clk 0:02:19]}  Qxa4 {[%clk 0:00:02]} 35. Ra1 {[%clk 0:02:17]}  Qe4 {[%clk 0:00:03]} 36. Bf3 {[%clk 0:02:17]}  Rxa1 {[%clk 0:00:02]} 37. Bxe4 {[%clk 0:02:17]}  Rxd1 {[%clk 0:00:01]} 38. Qxd1 {[%clk 0:02:18]}  Re8 {[%clk 0:00:02]} 39. b6 {[%clk 0:02:17]}  Ne7 {[%clk 0:00:01]} 40. Qd7 {[%clk 0:02:16]}  Nd5 {[%clk 0:00:01]} 41. Qxe8# {[%clk 0:02:16]} 1-0


[Site "https://www.chess.com"]

[Event "Titled Tuesday Blitz March 08 Late 2022"]
[White "Sztokbant, Bernardo Vainzoff"]
[Black "Miszler, Levente"]
[WhiteFideId "2115956"]
[BlackFideId "763276"]
[WhiteElo "2237"]
[BlackElo "1966"]
[Result "0-1"]
[Round "05"]
[TimeControl "180+1"]
[Date "2022.03.09"]
[WhiteClock "0:00:02"]
[BlackClock "0:00:53"]

1. d4 {[%clk 0:02:53]}  Nf6 {[%clk 0:02:59]} 2. c4 {[%clk 0:02:53]}  g6 {[%clk 0:02:59]} 3. Nc3 {[%clk 0:02:53]}  Bg7 {[%clk 0:02:59]} 4. Nf3 {[%clk 0:02:53]}  d6 {[%clk 0:03:00]} 5. g3 {[%clk 0:02:54]}  O-O {[%clk 0:02:58]} 6. Bg2 {[%clk 0:02:54]}  Nbd7 {[%clk 0:02:59]} 7. O-O {[%clk 0:02:55]}  e5 {[%clk 0:03:00]} 8. e4 {[%clk 0:02:55]}  Re8 {[%clk 0:02:59]} 9. Re1 {[%clk 0:02:55]}  h6 {[%clk 0:02:57]} 10. h3 {[%clk 0:02:55]}  exd4 {[%clk 0:02:56]} 11. Nxd4 {[%clk 0:02:56]}  Nc5 {[%clk 0:02:57]} 12. Rb1 {[%clk 0:02:53]}  Ne6 {[%clk 0:02:56]} 13. Nc2 {[%clk 0:02:45]}  Nd7 {[%clk 0:02:55]} 14. Be3 {[%clk 0:02:27]}  Ndc5 {[%clk 0:02:53]} 15. Qd2 {[%clk 0:02:22]}  a5 {[%clk 0:02:48]} 16. Bxh6 {[%clk 0:02:18]}  Bxh6 {[%clk 0:02:42]} 17. Qxh6 {[%clk 0:02:19]}  c6 {[%clk 0:02:29]} 18. Rbd1 {[%clk 0:02:18]}  Qe7 {[%clk 0:02:27]} 19. Ne3 {[%clk 0:01:59]}  Ng5 {[%clk 0:02:15]} 20. Kh2 {[%clk 0:01:45]}  Qf6 {[%clk 0:02:00]} 21. Rxd6 {[%clk 0:01:30]}  Qxd6 {[%clk 0:01:56]} 22. Qxg5 {[%clk 0:01:30]}  Ne6 {[%clk 0:01:55]} 23. Qf6 {[%clk 0:01:29]}  Qd8 {[%clk 0:01:54]} 24. Ng4 {[%clk 0:01:28]}  Qe7 {[%clk 0:01:45]} 25. Nh6+ {[%clk 0:01:27]}  Kh7 {[%clk 0:01:45]} 26. Ng4 {[%clk 0:01:17]}  Nc5 {[%clk 0:01:32]} 27. Qxe7 {[%clk 0:01:04]}  Rxe7 {[%clk 0:01:33]} 28. Nf6+ {[%clk 0:01:03]}  Kg7 {[%clk 0:01:31]} 29. Ng4 {[%clk 0:00:48]}  Be6 {[%clk 0:01:25]} 30. Bf1 {[%clk 0:00:39]}  Rae8 {[%clk 0:01:20]} 31. Ne3 {[%clk 0:00:36]}  Bd7 {[%clk 0:01:15]} 32. Bg2 {[%clk 0:00:33]}  Be6 {[%clk 0:01:06]} 33. Re2 {[%clk 0:00:32]}  Rd8 {[%clk 0:01:03]} 34. e5 {[%clk 0:00:24]}  Rd4 {[%clk 0:01:01]} 35. b3 {[%clk 0:00:18]}  a4 {[%clk 0:01:01]} 36. b4 {[%clk 0:00:17]}  Bxc4 {[%clk 0:00:57]} 37. Nxc4 {[%clk 0:00:11]}  Rxc4 {[%clk 0:00:58]} 38. bxc5 {[%clk 0:00:03]}  Rxc3 {[%clk 0:00:58]} 39. Re4 {[%clk 0:00:01]}  a3 {[%clk 0:00:57]} 40. Ra4 {[%clk 0:00:02]}  Rxe5 {[%clk 0:00:56]} 41. Ra7 {[%clk 0:00:01]}  Re2 {[%clk 0:00:55]} 42. Rxb7 {[%clk 0:00:01]}  Rxf2 {[%clk 0:00:55]} 43. Kg1 {[%clk 0:00:02]}  Rxa2 {[%clk 0:00:54]} 44. Bxc6 {[%clk 0:00:02]}  Rc1# {[%clk 0:00:53]} 0-1


[Site "https://www.chess.com"]

[Event "Titled Tuesday Blitz March 08 Late 2022"]
[White "Wartiovaara, Oliver"]
[Black "Fernandez Siles, Luis"]
[WhiteFideId "513024"]
[BlackFideId "2209420"]
[WhiteElo "1971"]
[BlackElo "2212"]
[Result "1-0"]
[Round "05"]
[TimeControl "180+1"]
[Date "2022.03.09"]
[WhiteClock "0:00:14"]
[BlackClock "0:00:38"]

1. e4 {[%clk 0:03:00]}  c5 {[%clk 0:02:59]} 2. Nf3 {[%clk 0:03:00]}  Nc6 {[%clk 0:03:00]} 3. Bb5 {[%clk 0:03:00]}  g6 {[%clk 0:02:59]} 4. O-O {[%clk 0:03:00]}  Bg7 {[%clk 0:03:00]} 5. c3 {[%clk 0:03:00]}  Nf6 {[%clk 0:03:00]} 6. Re1 {[%clk 0:02:58]}  O-O {[%clk 0:02:59]} 7. d4 {[%clk 0:02:58]}  d5 {[%clk 0:02:59]} 8. e5 {[%clk 0:02:58]}  Ne4 {[%clk 0:02:59]} 9. Bxc6 {[%clk 0:02:58]}  bxc6 {[%clk 0:02:58]} 10. Be3 {[%clk 0:02:59]}  Qb6 {[%clk 0:02:47]} 11. Qc1 {[%clk 0:02:51]}  Rb8 {[%clk 0:02:39]} 12. b3 {[%clk 0:02:39]}  cxd4 {[%clk 0:02:11]} 13. cxd4 {[%clk 0:02:40]}  a5 {[%clk 0:02:00]} 14. Nc3 {[%clk 0:02:22]}  Nxc3 {[%clk 0:01:58]} 15. Qxc3 {[%clk 0:02:23]}  Ba6 {[%clk 0:01:57]} 16. Rac1 {[%clk 0:02:12]}  Rfc8 {[%clk 0:01:57]} 17. Bd2 {[%clk 0:01:29]}  a4 {[%clk 0:01:51]} 18. bxa4 {[%clk 0:01:23]}  Qb2 {[%clk 0:01:50]} 19. Qc5 {[%clk 0:01:11]}  Qxa2 {[%clk 0:01:46]} 20. Qxe7 {[%clk 0:01:08]}  Qxa4 {[%clk 0:01:40]} 21. e6 {[%clk 0:00:57]}  fxe6 {[%clk 0:01:35]} 22. Ng5 {[%clk 0:00:49]}  Rf8 {[%clk 0:01:13]} 23. Qxe6+ {[%clk 0:00:45]}  Kh8 {[%clk 0:01:13]} 24. Qh3 {[%clk 0:00:25]}  h5 {[%clk 0:00:57]} 25. Ne6 {[%clk 0:00:25]}  Rf5 {[%clk 0:00:48]} 26. Nxg7 {[%clk 0:00:22]}  Kxg7 {[%clk 0:00:49]} 27. Qe3 {[%clk 0:00:21]}  Rbf8 {[%clk 0:00:48]} 28. Qh6+ {[%clk 0:00:20]}  Kf6 {[%clk 0:00:45]} 29. Bf4 {[%clk 0:00:17]}  Rxf4 {[%clk 0:00:41]} 30. Qxf8+ {[%clk 0:00:16]}  Kg5 {[%clk 0:00:41]} 31. Qe7+ {[%clk 0:00:16]}  Kh6 {[%clk 0:00:41]} 32. Qe5 {[%clk 0:00:15]}  Qxd4 {[%clk 0:00:41]} 33. Qxd4 {[%clk 0:00:14]}  Rxd4 {[%clk 0:00:42]} 34. Rxc6 {[%clk 0:00:14]}  Rd2 {[%clk 0:00:39]} 35. Rxa6 {[%clk 0:00:14]}  d4 {[%clk 0:00:38]} 36. g3 {[%clk 0:00:14]} 1-0


[Site "https://www.chess.com"]

[Event "Titled Tuesday Blitz March 08 Late 2022"]
[White "Zakharov, Alexander S."]
[Black "P., Komal Kishore"]
[WhiteFideId "4120132"]
[BlackFideId "5016703"]
[WhiteElo "2417"]
[BlackElo "2135"]
[Result "0-1"]
[Round "05"]
[TimeControl "180+1"]
[Date "2022.03.09"]
[WhiteClock "0:00:03"]
[BlackClock "0:00:15"]

1. e4 {[%clk 0:01:31]}  c6 {[%clk 0:03:00]} 2. d4 {[%clk 0:01:30]}  d5 {[%clk 0:03:01]} 3. e5 {[%clk 0:01:30]}  Bf5 {[%clk 0:03:01]} 4. c4 {[%clk 0:01:30]}  e6 {[%clk 0:03:00]} 5. Nc3 {[%clk 0:01:30]}  Ne7 {[%clk 0:02:39]} 6. a3 {[%clk 0:01:28]}  Nd7 {[%clk 0:02:36]} 7. c5 {[%clk 0:01:27]}  h6 {[%clk 0:02:32]} 8. Be3 {[%clk 0:01:22]}  Bg6 {[%clk 0:02:28]} 9. f4 {[%clk 0:01:20]}  Nf5 {[%clk 0:02:27]} 10. Bf2 {[%clk 0:01:20]}  h5 {[%clk 0:02:23]} 11. Nf3 {[%clk 0:01:19]}  Be7 {[%clk 0:02:21]} 12. Be2 {[%clk 0:01:16]}  b6 {[%clk 0:02:14]} 13. b4 {[%clk 0:01:15]}  a5 {[%clk 0:02:13]} 14. O-O {[%clk 0:01:14]}  O-O {[%clk 0:02:05]} 15. Qd2 {[%clk 0:00:49]}  Qc7 {[%clk 0:02:02]} 16. Rfc1 {[%clk 0:00:47]}  Qb7 {[%clk 0:01:55]} 17. Bd3 {[%clk 0:00:39]}  axb4 {[%clk 0:01:53]} 18. axb4 {[%clk 0:00:38]}  b5 {[%clk 0:01:48]} 19. Qb2 {[%clk 0:00:33]}  Nxd4 {[%clk 0:01:41]} 20. Nxd4 {[%clk 0:00:26]}  Bxd3 {[%clk 0:01:39]} 21. Rd1 {[%clk 0:00:25]}  Bc4 {[%clk 0:01:33]} 22. Qd2 {[%clk 0:00:11]}  g6 {[%clk 0:01:29]} 23. Qe3 {[%clk 0:00:11]}  Rxa1 {[%clk 0:01:19]} 24. Rxa1 {[%clk 0:00:10]}  Ra8 {[%clk 0:01:20]} 25. Re1 {[%clk 0:00:10]}  Ra3 {[%clk 0:01:14]} 26. f5 {[%clk 0:00:09]}  exf5 {[%clk 0:00:55]} 27. e6 {[%clk 0:00:09]}  Nf6 {[%clk 0:00:48]} 28. exf7+ {[%clk 0:00:08]}  Kxf7 {[%clk 0:00:48]} 29. Qe6+ {[%clk 0:00:09]}  Kf8 {[%clk 0:00:46]} 30. Be3 {[%clk 0:00:09]}  Ng4 {[%clk 0:00:38]} 31. Nxc6 {[%clk 0:00:06]}  Rxc3 {[%clk 0:00:31]} 32. Bg5 {[%clk 0:00:06]}  Bxg5 {[%clk 0:00:28]} 33. Qe8+ {[%clk 0:00:05]}  Kg7 {[%clk 0:00:27]} 34. h4 {[%clk 0:00:05]}  Bxh4 {[%clk 0:00:22]} 35. g3 {[%clk 0:00:04]}  Rxg3+ {[%clk 0:00:20]} 36. Kh1 {[%clk 0:00:03]}  d4 {[%clk 0:00:18]} 37. Re7+ {[%clk 0:00:01]}  Bxe7 {[%clk 0:00:17]} 38. Qxe7+ {[%clk 0:00:01]}  Qxe7 {[%clk 0:00:16]} 39. Nxe7 {[%clk 0:00:01]}  Kf7 {[%clk 0:00:15]} 40. c6 {[%clk 0:00:02]}  Kxe7 {[%clk 0:00:15]} 41. c7 {[%clk 0:00:03]}  Bd5# {[%clk 0:00:15]} 0-1


[Site "https://www.chess.com"]